bitfinex-derivatives/quotes_SOLF0:USTF0_20250821
["timestamp","ask_amount","ask_price","bid_price","bid_amount"]
[1755807593956,4.19797115,180.33,180.27,2.94]
[1755807594153,3.8764903,180.35,180.27,2.94]
[1755807594354,4.19814109,180.34,180.27,2.94]
[1755807594554,3.8764903,180.35,180.27,2.94]
[1755807594759,4.19839319,180.34,180.28,5.5482]
[1755807594960,4.19839319,180.34,180.27,2.94]
[1755807595161,4.1983897,180.33,180.27,5.5483]
[1755807595465,3.9364903,180.35,180.28,2.94]
[1755807595658,4.19864749,180.34,180.28,2.94]
[1755807596262,4.19864749,180.34,180.28,8.488]
[1755807596461,4.19864749,180.34,180.29,2.94]
[1755807596662,4.19864749,180.34,180.31,2.94]
[1755807597053,4.25864749,180.34,180.31,2.94]
[1755807597559,4.25864749,180.34,180.32,2.94]
[1755807599263,4.25864749,180.34,180.3,2.94]
[1755807599464,4.25864749,180.34,180.31,2.94]
[1755807600467,4.19864749,180.34,180.26,9.4251903]
[1755807600766,0.06,180.32,180.3,2.94]
[1755807601162,4.19864749,180.34,180.26,9.4251903]
[1755807601363,4.25864749,180.34,180.31,2.94]
[1755807601864,0.06,180.33,180.26,5.5487]
[1755807602065,0.06,180.33,180.3,2.94]
[1755807602264,2.54180933,180.33,180.3,2.94]
[1755807602767,0.06,180.32,180.3,2.94]
[1755807603065,12.08150157,180.45,180.3,2.94]
[1755807603066,6.1930007,180.44,180.32,2.94]
[1755807603365,2.88,180.52,180.43,2.48180933]
[1755807603563,387.88187696,180.67,180.49,2.48180933]
[1755807603564,2.88,180.6,180.49,2.48180933]
[1755807603862,2.88,180.58,180.53,2.48180933]
[1755807604058,2.48180933,180.6,180.54,10.77470897]
[1755807604264,2.88,180.59,180.55,10.77470897]
[1755807604464,2.48180933,180.58,180.56,10.77470897]
[1755807604667,2.88,180.57,180.53,2.48180933]
[1755807604866,2.88,180.57,180.54,10.8782743]
[1755807605066,2.88,180.59,180.55,10.8782743]
[1755807605267,2.88,180.58,180.56,10.8782743]
[1755807605466,2.88,180.58,180.53,2.48180933]
[1755807605467,2.88,180.58,180.57,5.5330767]
[1755807605865,2.88,180.58,180.57,11.78307848]
[1755807606260,6.74825364,180.58,180.57,5.54307848]
[1755807606861,6.74825364,180.58,180.48,8.482]
[1755807607169,6.74825364,180.58,180.48,2.94]
[1755807607361,6.74825364,180.58,180.49,5.5415]
[1755807607565,6.74825364,180.58,180.48,2.94]
[1755807608670,2.88,180.58,180.51,2.94]
[1755807608974,2.88,180.58,180.51,8.481]
[1755807609273,2.88,180.58,180.51,2.94]
[1755807610474,2.88,180.58,180.51,5.541]
[1755807610674,2.88,180.58,180.52,2.94]
[1755807610875,2.88,180.58,180.49,6.80825364]
[1755807611076,2.88,180.58,180.5,2.94]
[1755807611678,2.88,180.58,180.5,8.4814]
[1755807612777,2.88,180.58,180.51,2.94]
[1755807614480,2.88,180.57,180.48,13.26]
[1755807615078,2.88,180.57,180.48,22.67015364]
[1755807615781,2.88,180.57,180.5,6.80825364]
[1755807616177,2.88,180.57,180.5,12.34965364]
[1755807617682,2.88,180.57,180.51,2.94]
[1755807618285,2.88,180.57,180.52,5.71234032]
[1755807618482,2.88,180.57,180.53,13.96605577]
[1755807618680,2.88,180.57,180.54,11.02605577]
[1755807618880,2.88,180.57,180.55,11.02605577]
[1755807619186,2.88,180.57,180.56,11.02605577]
[1755807619885,140.3,180.63,180.56,11.02605577]
[1755807619886,3.86825364,180.6,180.56,11.02605577]
[1755807620085,2.88,180.59,180.57,5.31371545]
[1755807620285,3.86825364,180.6,180.58,5.31371545]
[1755807620487,3.86825364,180.6,180.53,2.94]
[1755807620690,3.86825364,180.6,180.54,5.31065279]
[1755807620889,2.88,180.59,180.55,5.31065279]
[1755807621089,2.88,180.58,180.56,5.31065279]
[1755807621293,2.88,180.58,180.57,5.31065279]
[1755807621489,2.88,180.58,180.57,5.27091183]
[1755807630692,2.88,180.58,180.54,2.94]
[1755807630892,2.88,180.58,180.55,8.34463395]
[1755807631084,2.88,180.58,180.56,5.24463395]
[1755807631288,2.88,180.58,180.57,5.24463395]
[1755807631594,3.86825364,180.61,180.57,5.24463395]
[1755807631795,3.86825364,180.61,180.55,3.1]
[1755807631796,3.08,180.59,180.58,5.24463395]
[1755807636291,3.86825364,180.61,180.58,5.24463395]
[1755807636497,3.86825364,180.61,180.59,5.24463395]
[1755807636498,3.08,180.6,180.59,5.24463395]
[1755807640193,3.08,180.6,180.59,5.2647594]
[1755807640597,3.08,180.6,180.59,5.26925265]
[1755807643203,3.08,180.6,180.59,5.23410262]
[1755807644301,3.08,180.6,180.59,10.28721582]
[1755807647300,3.08,180.6,180.59,5.0531132]
[1755807648197,3.08,180.6,180.57,3.1]
[1755807648397,3.08,180.6,180.58,3.1]
[1755807651309,6.94825364,180.61,180.59,3.1]
[1755807651508,6.94825364,180.61,180.58,3.1]
[1755807652206,3.86825364,180.61,180.53,4.66638938]
[1755807652408,138.22,180.62,180.56,3.1]
[1755807653098,141.14,180.62,180.56,3.1]
[1755807654513,3.86825364,180.61,180.56,3.1]
[1755807654807,2.92,180.6,180.57,2.99]
[1755807656504,2.92,180.6,180.55,12.35]
[1755807656709,2.92,180.6,180.58,2.99]
[1755807658311,2.47496762,180.59,180.58,2.99]
[1755807659007,2.47496762,180.59,180.56,2.99]
[1755807659206,2.47496762,180.59,180.57,2.99]
[1755807660208,5.39496762,180.59,180.57,2.99]
[1755807660610,137.96,180.58,180.55,12.35]
[1755807660818,2.92,180.55,180.45,7.65638938]
[1755807661112,2.47496762,180.47,180.46,2.99]
[1755807661709,2.47496762,180.5,180.48,2.99]
[1755807661914,5.39496762,180.5,180.48,2.99]
[1755807662316,6.7913852,180.5,180.48,2.99]
[1755807662811,3.8713852,180.5,180.48,2.99]
[1755807663210,6.2116215,180.54,180.44,2.99]
[1755807663416,141.8713852,180.56,180.46,2.99]
[1755807664312,3.8713852,180.54,180.49,2.99]
[1755807664514,2.92,180.53,180.5,2.99]
[1755807665617,6.7913852,180.52,180.44,2.99]
[1755807666813,6.7913852,180.52,180.44,8.533]
[1755807667018,6.7913852,180.52,180.45,2.99]
[1755807667523,6.7913852,180.52,180.46,2.99]
[1755807668620,3.8713852,180.54,180.46,2.99]
[1755807668824,3.8713852,180.54,180.45,3.8713852]
[1755807669125,144.8913852,180.56,180.46,2.99]
[1755807669321,144.8913852,180.56,180.48,2.99]
[1755807676134,2.92,180.55,180.48,2.99]
[1755807682641,6.7913852,180.55,180.48,2.99]
[1755807682941,3.0,180.54,180.48,2.99]
[1755807683141,3.0,180.52,180.45,2.94]
[1755807684134,3.0,180.5,180.45,2.94]
[1755807684341,3.0,180.49,180.45,2.94]
[1755807684541,3.0,180.5,180.42,2.94]
[1755807685147,3.8713852,180.48,180.42,2.94]
[1755807685344,3.0,180.46,180.42,2.94]
[1755807685540,3.0,180.45,180.42,2.94]
[1755807685843,3.0,180.44,180.38,2.94]
[1755807686040,3.0,180.44,180.38,8.4849]
[1755807686239,3.0,180.44,180.39,2.94]
[1755807686546,3.0,180.44,180.41,2.94]
[1755807687743,3.0,180.45,180.37,2.94]
[1755807691343,3.8713852,180.44,180.37,8.4853]
[1755807691939,3.8713852,180.44,180.37,2.94]
[1755807692142,3.0,180.43,180.37,2.94]
[1755807692742,3.0,180.43,180.37,5.5452]
[1755807693045,3.0,180.43,180.4,2.94]
[1755807693441,3.8713852,180.47,180.39,2.94]
[1755807693947,3.0,180.46,180.39,2.94]
[1755807694747,3.0,180.46,180.39,8.4847]
[1755807695147,3.0,180.46,180.4,2.94]
[1755807698650,3.0,180.44,180.35,2.94]
[1755807700547,3.0,180.42,180.35,2.94]
[1755807707052,3.0,180.42,180.36,2.94]
[1755807717966,3.03,180.4,180.35,15.03]
[1755807718153,3.03,180.38,180.35,15.03]
[1755807718356,3.03,180.38,180.35,18.02]
[1755807719163,147.67479984,180.47,180.35,18.02]
[1755807719354,3.8713852,180.41,180.35,18.02]
[1755807719558,3.03,180.39,180.35,18.02]
[1755807719756,3.03,180.38,180.35,18.02]
[1755807720262,3.03,180.37,180.35,18.02]
[1755807720458,147.67479984,180.47,180.36,2.99]
[1755807720459,3.8713852,180.43,180.36,2.99]
[1755807720659,3.03,180.43,180.36,2.99]
[1755807721262,6.9013852,180.43,180.36,2.99]
[1755807721467,3.03,180.42,180.36,2.99]
[1755807726664,3.03,180.45,180.38,3.8713852]
[1755807726965,3.03,180.51,180.42,2.99]
[1755807727265,3.03,180.51,180.45,2.99]
[1755807730870,3.8713852,180.54,180.45,2.99]
[1755807730871,3.03,180.54,180.45,2.99]
[1755807732264,3.8713852,180.53,180.45,2.99]
[1755807732470,3.03,180.52,180.45,2.99]
[1755807744077,2.87,180.55,180.45,2.99]
[1755807744279,6.7413852,180.55,180.45,2.99]
[1755807744468,2.87,180.52,180.45,2.99]
[1755807752282,2.47663463,180.51,180.46,2.47663463]
[1755807752483,5.34663463,180.51,180.46,2.47663463]
[1755807752682,5.34663463,180.54,180.48,2.47663463]
[1755807752889,2.47663463,180.56,180.51,2.95]
[1755807753085,5.34663463,180.58,180.52,5.42663463]
[1755807753884,5.34663463,180.57,180.51,2.47663463]
[1755807754086,2.47663463,180.57,180.51,2.47663463]
[1755807754288,2.87,180.55,180.51,2.95]
[1755807754591,2.87,180.57,180.51,2.95]
[1755807755589,2.87,180.57,180.47,3.86804902]
[1755807755792,3.86804902,180.56,180.47,3.86804902]
[1755807755991,2.87,180.55,180.48,2.95]
[1755807760100,0.03522701,180.53,180.48,2.95]
[1755807760502,0.03522701,180.53,180.51,2.95]
[1755807760701,0.03522701,180.53,180.52,2.95]
[1755807774412,0.03522701,180.53,180.52,5.42499815]
[1755807779419,0.03522701,180.53,180.52,2.95]
[1755807780315,0.03522701,180.53,180.5,16.93467781]
[1755807780520,3.14522701,180.53,180.51,2.82]
[1755807783323,0.03522701,180.53,180.51,2.82]
[1755807783617,0.03522701,180.53,180.5,0.03967966]
[1755807783922,0.03522701,180.53,180.51,2.82]
[1755807786723,3.11,180.52,180.5,0.03967966]
[1755807787025,5.58499815,180.51,180.5,0.03967966]
[1755807791828,2.47499815,180.51,180.42,2.82]
[1755807792029,2.47499815,180.46,180.41,2.47499815]
[1755807792227,2.47499815,180.46,180.44,2.82]
[1755807793027,2.47499815,180.46,180.39,372.44]
[1755807793231,3.11,180.46,180.43,2.82]
[1755807793532,2.47499815,180.45,180.43,2.82]
[1755807794721,5.58499815,180.45,180.43,2.82]
[1755807794931,5.58499815,180.45,180.39,2.47499815]
[1755807795232,5.58499815,180.45,180.42,2.82]
[1755807799033,5.58499815,180.45,180.4,2.82]
[1755807799237,2.47499815,180.45,180.4,2.82]
[1755807801336,2.51568951,180.47,180.41,2.47499815]
[1755807801535,2.51568951,180.47,180.42,2.82]
[1755807802338,2.51568951,180.47,180.43,2.82]
[1755807802533,2.51568951,180.47,180.44,2.82]
[1755807802838,2.51568951,180.47,180.42,2.82]
[1755807803036,2.96,180.46,180.43,2.82]
[1755807803537,2.47499815,180.45,180.39,2.47499815]
[1755807803836,2.96,180.44,180.41,2.82]
[1755807804436,2.47499815,180.45,180.41,2.82]
[1755807804638,2.96,180.43,180.41,2.82]
[1755807805535,2.47499815,180.45,180.4,2.82]
[1755807805735,5.43499815,180.45,180.39,2.47499815]
[1755807805935,5.43499815,180.45,180.42,2.82]
[1755807806339,0.03529779,180.44,180.4,2.82]
[1755807806741,0.03529779,180.44,180.41,2.82]
[1755807806941,0.03529779,180.44,180.42,2.82]
[1755807809237,0.03529779,180.44,180.4,2.82]
[1755807809542,0.03529779,180.44,180.39,2.47499815]
[1755807809749,0.03529779,180.44,180.43,2.82]
[1755807813441,2.47499815,180.51,180.43,5.29499815]
[1755807813649,2.47499815,180.51,180.46,2.82]
[1755807814448,5.43499815,180.53,180.47,2.47499815]
[1755807814748,5.43499815,180.53,180.5,2.82]
[1755807815149,2.96,180.53,180.5,2.82]
[1755807815350,2.96,180.53,180.51,2.82]
[1755807816448,2.96,180.53,180.49,2.82]
[1755807816649,2.96,180.53,180.5,2.82]
[1755807820553,3.86886204,180.51,180.41,3.86886204]
[1755807820745,2.96,180.5,180.42,2.82]
[1755807825461,6.82886204,180.5,180.42,2.82]
[1755807827860,2.96,180.5,180.42,2.82]
[1755807828065,2.96,180.53,180.44,2.82]
[1755807831369,3.86886204,180.52,180.44,2.82]
[1755807831561,2.96,180.51,180.44,2.82]
[1755807842280,2.4771654,180.49,180.44,2.82]
[1755807842575,2.4771654,180.45,180.41,2.95]
[1755807842880,3.11,180.44,180.41,2.95]
[1755807843075,5.5871654,180.43,180.41,2.95]
[1755807843581,2.4771654,180.43,180.39,2.95]
[1755807843776,2.4771654,180.45,180.39,2.95]
[1755807844483,3.11,180.46,180.39,2.95]
[1755807847683,3.8725399,180.49,180.4,2.95]
[1755807848177,3.8725399,180.49,180.4,5.5444]
[1755807848382,3.11,180.5,180.41,2.95]
[1755807848879,3.11,180.5,180.42,2.95]
[1755807857581,6.9825399,180.5,180.42,2.95]
[1755807857887,3.11,180.49,180.42,2.95]
[1755807860788,3.11,180.49,180.39,2.95]
[1755807860987,3.11,180.46,180.39,2.95]
[1755807864394,3.11,180.46,180.39,5.5446]
[1755807864595,3.11,180.46,180.4,3.01]
[1755807865495,0.96465696,180.5,180.4,3.01]
[1755807865789,3.11,180.49,180.4,3.01]
[1755807866694,3.11,180.49,180.4,8.5542]
[1755807866891,3.11,180.49,180.41,3.01]
[1755807867196,3.11,180.49,180.41,8.554]
[1755807867396,3.11,180.49,180.42,3.01]
[1755807882309,2.4777886,180.48,180.42,3.01]
[1755807882603,2.4777886,180.48,180.41,2.4777886]
[1755807882604,3.11,180.46,180.43,3.01]
[1755807883205,2.4777886,180.48,180.43,3.01]
[1755807883410,3.11,180.45,180.43,3.01]
[1755807890623,3.11,180.44,180.41,3.01]
[1755807890923,3.11,180.44,180.42,3.01]
[1755807893722,3.08,180.43,180.4,3.09]
[1755807894726,3.08,180.42,180.4,3.09]
[1755807900432,2.4777886,180.45,180.39,215.38399083]
[1755807900628,3.08,180.45,180.4,2.4777886]
[1755807900824,2.4777886,180.46,180.42,3.09]
[1755807901030,2.4777886,180.46,180.44,3.09]
[1755807901426,3.08,180.48,180.45,3.09]
[1755807901427,5.5577886,180.48,180.45,3.09]
[1755807901935,3.08,180.47,180.45,3.09]
[1755807903332,6.21060666,180.52,180.4,136.56]
[1755807903538,148.25731389,180.53,180.47,3.09]
[1755807903539,5.5577886,180.5,180.47,3.09]
[1755807904239,2.4777886,180.5,180.47,3.09]
[1755807904442,5.5577886,180.5,180.47,3.09]
[1755807904645,3.08,180.49,180.47,3.09]
[1755807906541,3.08,180.51,180.43,3.09]
[1755807919351,3.87034677,180.5,180.43,3.09]
[1755807919554,3.08,180.49,180.43,3.09]
[1755807928254,2.47754277,180.48,180.43,3.09]
[1755807928458,2.97,180.47,180.44,3.1]
[1755807928860,2.97,180.47,180.42,8.02124277]
[1755807929160,2.97,180.47,180.45,3.1]
[1755807930363,2.97,180.46,180.44,3.1]
[1755807930766,2.97,180.45,180.43,3.1]
[1755807931059,2.47754277,180.48,180.41,2.47754277]
[1755807931264,2.97,180.47,180.42,3.1]
[1755807931465,5.44754277,180.48,180.42,3.1]
[1755807931860,5.44754277,180.48,180.44,3.1]
[1755807931861,2.97,180.47,180.44,3.1]
[1755807932066,2.97,180.47,180.45,3.1]
[1755807939575,5.44754277,180.48,180.46,3.1]
[1755807939775,2.97,180.47,180.46,3.1]
[1755807939977,2.97,180.47,180.41,2.47754277]
[1755807940177,2.97,180.47,180.45,3.1]
[1755807942981,2.47754277,180.48,180.42,3.1]
[1755807943581,2.47754277,180.49,180.43,2.47754277]
[1755807943781,2.47754277,180.49,180.43,5.57754277]
[1755807943984,2.97,180.48,180.45,3.1]
[1755807944283,2.97,180.48,180.46,3.1]
[1755807947084,2.47754277,180.49,180.43,2.47754277]
[1755807947385,2.97,180.47,180.45,3.1]
[1755807947984,2.97,180.45,180.43,3.1]
[1755807948384,5.44754277,180.47,180.44,3.1]
[1755807948888,2.97,180.46,180.44,3.1]
[1755807950487,2.97,180.46,180.41,5.5441]
[1755807950687,2.97,180.46,180.44,3.1]
[1755807953189,2.97,180.46,180.45,2.89]
[1755807954594,2.95,180.46,180.41,10.91154277]
[1755807954794,2.95,180.45,180.43,2.89]
[1755807955296,2.47754277,180.47,180.44,2.89]
[1755807955495,2.95,180.46,180.44,2.89]
[1755807956999,2.95,180.46,180.42,5.5437]
[1755807957198,2.95,180.46,180.44,2.89]
[1755807962599,9.16060666,180.52,180.46,2.89]
[1755807962803,2.95,180.52,180.48,2.89]
[1755807963003,2.95,180.54,180.47,4.66505708]
[1755807963307,2.95,180.46,180.44,4.66505708]
[1755807963497,2.47754277,180.46,180.42,2.89]
[1755807963695,2.47754277,180.46,180.43,2.89]
[1755807963901,5.42754277,180.46,180.43,2.89]
[1755807964206,2.95,180.45,180.41,2.89]
[1755807964504,2.95,180.45,180.43,2.89]
[1755807965007,2.47754277,180.46,180.41,2.89]
[1755807965206,4.36951328,180.45,180.41,2.89]
[1755807965604,2.47754277,180.47,180.41,2.89]
[1755807965804,4.36838315,180.46,180.42,2.89]
[1755807966003,4.36838315,180.46,180.44,2.89]
[1755807966799,3.91464359,180.51,180.43,2.89]
[1755807966998,2.47754277,180.48,180.42,2.47754277]
[1755807967202,4.36772254,180.47,180.43,2.89]
[1755807967400,4.36772254,180.47,180.42,2.47754277]
[1755807967602,4.36772254,180.47,180.44,2.89]
[1755807967807,2.47754277,180.48,180.45,2.89]
[1755807968109,4.36690505,180.47,180.46,2.89]
[1755807968305,4.36690505,180.48,180.46,2.89]
[1755807968499,4.36690505,180.47,180.46,2.89]
[1755807968807,2.47754277,180.52,180.46,2.47754277]
[1755807969102,4.36627561,180.51,180.49,2.89]
[1755807969608,7.31627561,180.51,180.49,2.89]
[1755807969907,2.95,180.51,180.49,2.89]
[1755807970309,2.47754277,180.52,180.49,2.89]
[1755807970509,4.36554521,180.51,180.49,2.89]
[1755807971008,4.36554521,180.51,180.46,2.89]
[1755807971308,7.31554521,180.51,180.47,2.89]
[1755807971510,2.95,180.51,180.48,2.89]
[1755807972808,2.47754277,180.52,180.47,2.89]
[1755807973015,5.42754277,180.54,180.49,2.89]
[1755807973309,5.42754277,180.54,180.5,2.89]
[1755807973504,5.42754277,180.54,180.48,2.47754277]
[1755807973505,5.42754277,180.54,180.51,2.89]
[1755807976310,2.95,180.57,180.53,2.89]
[1755807976512,2.47754277,180.54,180.53,2.89]
[1755807976705,2.95,180.53,180.48,2.47754277]
[1755807976914,2.95,180.53,180.5,2.89]
[1755807980607,2.95,180.53,180.48,2.47754277]
[1755807980809,2.47754277,180.5,180.43,2.47754277]
[1755807981012,2.47754277,180.5,180.44,2.89]
[1755807982314,6.82055589,180.51,180.44,2.89]
[1755807982813,2.97,180.5,180.44,2.89]
[1755807983009,2.97,180.48,180.44,2.89]
[1755807983216,136.14,180.53,180.41,213.77554398]
[1755807983217,3.87055589,180.47,180.41,216.75554398]
[1755807983409,2.97,180.45,180.42,2.98]
[1755807983808,2.97,180.44,180.42,2.98]
[1755807984009,2.97,180.44,180.41,216.75554398]
[1755807985318,2.97,180.5,180.42,2.98]
[1755807985508,2.97,180.5,180.43,3.87055589]
[1755807985708,2.97,180.53,180.47,3.87055589]
[1755807985916,2.97,180.53,180.5,2.98]
[1755807987013,2.97,180.57,180.51,2.98]
[1755807991521,2.97,180.55,180.47,2.98]
[1755807994224,2.97,180.55,180.49,3.87055589]
[1755807994418,2.97,180.55,180.52,2.98]
[1755807994820,2.97,180.54,180.52,2.98]
[1755807995222,2.97,180.54,180.5,2.98]
[1755807995520,2.97,180.54,180.51,2.98]
[1755807995920,2.97,180.54,180.49,3.87055589]
[1755807996124,2.97,180.57,180.5,2.98]
[1755808009033,2.97,180.55,180.47,2.98]
[1755808009434,3.87055589,180.54,180.47,2.98]
[1755808009630,2.97,180.53,180.47,2.98]
[1755808016744,2.97,180.53,180.44,6.94055589]
[1755808016940,2.97,180.53,180.45,3.07]
[1755808023840,3.87055589,180.56,180.45,3.07]
[1755808024149,2.87,180.56,180.49,3.07]
[1755808026848,2.87,180.57,180.49,3.07]
[1755808029649,7.17492949,180.58,180.51,3.87055589]
[1755808029849,2.87,180.6,180.54,3.07]
[1755808035053,138.87,180.63,180.55,3.87055589]
[1755808035252,138.87,180.63,180.56,3.07]
[1755808036556,2.87,180.62,180.56,3.07]
[1755808037359,138.85,180.62,180.56,3.07]
[1755808038363,2.87,180.61,180.56,3.07]
[1755808038563,2.87,180.6,180.56,3.07]
[1755808038762,135.98,180.62,180.53,3.87055589]
[1755808038763,2.87,180.59,180.53,3.87055589]
[1755808039265,2.87,180.59,180.55,3.07]
[1755808039466,2.87,180.59,180.56,3.07]
[1755808041160,2.87,180.61,180.53,3.07]
[1755808046675,135.94,180.6,180.53,3.07]
[1755808047778,3.1,180.59,180.53,3.07]
[1755808052077,3.1,180.59,180.5,3.08]
[1755808052980,3.1,180.57,180.5,3.08]
[1755808056986,3.1,180.54,180.5,3.08]
[1755808057186,3.1,180.52,180.5,3.08]
[1755808057585,3.1,180.55,180.51,3.08]
[1755808057783,3.1,180.53,180.48,3.08]
[1755808057985,3.1,180.53,180.47,3.87055589]
[1755808058187,3.1,180.52,180.5,3.08]
[1755808058487,3.1,180.52,180.49,3.08]
[1755808058683,3.1,180.52,180.5,3.08]
[1755808058988,3.87055589,180.58,180.5,3.08]
[1755808059189,3.1,180.57,180.5,3.08]
[1755808060493,139.0,180.57,180.5,3.08]
[1755808060692,3.1,180.56,180.5,3.08]
[1755808061792,3.1,180.56,180.47,6.95055589]
[1755808061993,3.1,180.56,180.47,3.87055589]
[1755808062194,3.1,180.56,180.48,3.08]
[1755808062492,2.47590717,180.54,180.48,2.47590717]
[1755808062688,2.47590717,180.54,180.51,3.08]
[1755808062894,5.57590717,180.54,180.51,3.08]
[1755808063095,3.1,180.53,180.51,3.08]
[1755808066995,3.1,180.53,180.49,3.08]
[1755808067301,3.1,180.53,180.5,3.08]
[1755808067501,2.47590717,180.54,180.5,3.08]
[1755808067703,3.1,180.5,180.46,5.55590717]
[1755808067902,3.1,180.49,180.46,5.55590717]
[1755808068102,3.1,180.49,180.47,3.08]
[1755808069307,3.1,180.49,180.46,3.08]
[1755808070006,3.1,180.48,180.46,3.08]
[1755808073302,2.47590717,180.48,180.42,3.04]
[1755808073607,3.06,180.44,180.42,3.04]
[1755808074109,3.06,180.45,180.42,3.04]
[1755808074703,3.06,180.45,180.4,2.47590717]
[1755808074903,3.06,180.47,180.44,3.04]
[1755808075104,5.53590717,180.46,180.44,3.04]
[1755808075409,5.53590717,180.46,180.4,2.47590717]
[1755808075612,5.53590717,180.46,180.42,3.04]
[1755808075809,5.53590717,180.46,180.41,3.04]
[1755808076006,2.47590717,180.47,180.42,2.47590717]
[1755808076306,6.93128422,180.5,180.44,3.04]
[1755808077204,3.87128422,180.48,180.44,3.04]
[1755808077409,3.06,180.47,180.44,3.04]
[1755808081208,6.93128422,180.5,180.41,3.04]
[1755808082507,3.06,180.5,180.43,3.04]
[1755808086112,3.06,180.5,180.44,3.04]
[1755808087614,3.06,180.53,180.44,5.543]
[1755808087816,3.06,180.53,180.47,3.04]
[1755808093518,3.06,180.56,180.47,3.04]
[1755808094607,3.06,180.56,180.47,8.582]
[1755808094818,3.06,180.56,180.47,5.542]
[1755808095016,3.06,180.56,180.48,3.04]
[1755808100424,3.06,180.56,180.5,5.51536763]
[1755808100425,3.06,180.55,180.5,5.51536763]
[1755808100621,3.06,180.54,180.51,3.04]
[1755808100819,6.21060666,180.6,180.5,2.47536763]
[1755808101015,3.87128422,180.63,180.51,3.04]
[1755808101016,3.06,180.59,180.51,3.04]
[1755808101215,5.53536763,180.57,180.51,3.04]
[1755808102024,3.06,180.55,180.51,3.04]
[1755808102224,3.06,180.54,180.51,3.04]
[1755808103422,2.47536763,180.57,180.51,3.04]
[1755808103825,3.06,180.54,180.51,3.04]
[1755808104022,2.47536763,180.57,180.51,3.04]
[1755808104321,3.06,180.55,180.51,3.04]
[1755808104526,3.06,180.54,180.51,3.04]
[1755808105525,3.06,180.56,180.51,3.04]
[1755808105926,3.06,180.56,180.5,2.47536763]
[1755808106720,3.06,180.54,180.5,2.47536763]
[1755808106929,3.06,180.54,180.5,5.57536763]
[1755808107127,3.06,180.53,180.5,5.57536763]
[1755808108129,3.06,180.53,180.51,3.1]
[1755808115234,2.47536763,180.55,180.5,2.47536763]
[1755808115437,2.47536763,180.53,180.48,2.47536763]
[1755808115736,3.06,180.5,180.48,2.47536763]
[1755808115940,3.06,180.5,180.47,3.1]
[1755808116129,3.06,180.49,180.47,3.1]
[1755808117434,135.78,180.62,180.46,2.47536763]
[1755808117435,3.06,180.48,180.46,2.47536763]
[1755808117635,3.06,180.48,180.46,5.57536763]
[1755808120641,2.47536763,180.51,180.46,2.47536763]
[1755808120839,3.06,180.5,180.47,3.1]
[1755808121544,3.06,180.5,180.46,2.47536763]
[1755808121545,3.06,180.52,180.48,3.1]
[1755808121743,5.53536763,180.53,180.5,3.1]
[1755808121944,3.06,180.53,180.51,3.1]
[1755808122838,3.06,180.54,180.49,3.1]
[1755808123044,5.53536763,180.55,180.49,3.1]